Cogmind - Beta 11 X8 @@@ ROGUE MODE // 2021.11.27 @ 21:57:02 Player: WayneKnight Result: Destroyed by as-97421 with Assembled Heavy Rifle Performance ------------- Evolutions (0) 0 Regions Visited (4) 800 Robots Destroyed (20) 100 Value Destroyed (201) 201 Prototype IDs (0) 0 Alien Tech Used (0) 0 Bonus (74) 74 TOTAL SCORE: 1175 Bonus ------- Follower Combat Kills 74 Cogmind --------- Core Integrity 0/250 Matter 225/300 Energy 100/100 System Corruption 0% Temperature Cool (0) Movement Core (350) Ox6 Location -9/Mines Parts ------- > --- POWER (1) -------- (None) > --- PROPULSION (2) --- (None) > --- UTILITY (2) ------ Large Storage Unit > --- WEAPON (2) ------- Mini Grenade Launcher > --- INVENTORY (15) --- Ion Engine Large Battery (200) Sensor Array Targeting Computer Shield Generator Shield Generator EM Pulse Gun EM Pulse Gun Small Laser Mini Grenade Launcher Peak State ------------ > --- POWER ------------ Light Ion Engine > --- PROPULSION ------- Light Treads Light Treads > --- UTILITY ---------- Large Storage Unit Shield Generator > --- WEAPON ----------- EM Pulse Gun Assault Rifle > --- INVENTORY -------- Ion Engine Aluminum Leg Aluminum Leg Shield Generator Small Laser Mini Grenade Launcher Mini Grenade Launcher [Rating: 9] Favorites ----------- Power Light Ion Engine Engine Light Ion Engine Propulsion Light Treads Treads Light Treads Leg Aluminum Leg Utility Large Storage Unit Device Shield Generator Storage Large Storage Unit Protection Light Armor Plating Weapon Assault Rifle Energy Gun EM Pulse Gun Ballistic Gun Assault Rifle Launcher Mini Grenade Launcher Build | -11 -10 -10 -10 -9 ------- Run | Scr Mat Min Exi Min Slots Evolved . | . . . . . Power . | . . . . . Propulsion . | . . . . . Utility . | . . . . . Weapon . | . . . . . Parts Attached 13 | 3 5 . . 5 Power . | . . . . . Engine . | . . . . . Core . | . . . . . Reactor . | . . . . . Propulsion 5 | 2 . . . 3 Treads 3 | 2 . . . 1 Leg 2 | . . . . 2 Wheel . | . . . . . Hover . | . . . . . Flight . | . . . . . Utility 3 | . 3 . . . Device 1 | . 1 . . . Storage 1 | . 1 . . . Processor . | . . . . . Hackware . | . . . . . Protection 1 | . 1 . . . Artifact . | . . . . . Weapon 5 | 1 2 . . 2 Energy Gun 1 | . . . . 1 Energy Cannon . | . . . . . Ballistic Gun 2 | 1 1 . . . Ballistic Cannon . | . . . . . Launcher 2 | . 1 . . 1 Special Weapon . | . . . . . Impact Weapon . | . . . . . Slashing Weapon . | . . . . . Piercing Weapon . | . . . . . Special Melee Weapon . | . . . . . Unidentified Prototypes . | . . . . . Parts Lost 8 | . . . . 8 Power 1 | . . . . 1 Propulsion 4 | . . . . 4 Utility 1 | . . . . 1 Weapon 2 | . . . . 2 Highest Loss Streak 8 | . . . . 8 Average Slot Usage (%) 97 | . 93 100 100 94 Engine 13 | . 14 14 14 12 Treads 27 | . 28 28 28 26 Storage 14 | . 14 14 14 14 Protection 11 | . 7 14 14 12 Energy Gun 4 | . 13 . . . Ballistic Gun 23 | . 14 28 28 26 Naked Turns . | . . . . . Heaviest Build 30 | 12 30 29 29 29 Greatest Support 40 | 40 40 40 40 40 Greatest Overweight (x) 6 | . . . . 6 Average Overweight (x) . | . . . . . Largest Inventory Capacity 15 | 8 15 15 15 15 Average Capacity 14 | 8 12 15 15 15 Most Carried 13 | 6 11 13 13 13 Average Carried 10 | 4 7 12 13 12 Final Capacity 15 | 8 15 15 15 15 Final Carried 13 | 4 11 13 13 10 Class Distribution -------------------- 100% | Mutant Dominant Class ---------------- Mutant | -10/Materials Mutant | -10/Mines Mutant | -10/Exiles Mutant | -9/Mines Resources | -11 -10 -10 -10 -9 ----------- Run | Scr Mat Min Exi Min Matter Collected 434 | 200 80 134 . 20 Remotely . | . . . . . Salvage Created 228 | . 163 37 . 28 Parts 31 | . 18 5 . 8 Haulers Intercepted 1 | . 1 . . . Recyclers Shooed . | . . . . . Parts Field Recycled . | . . . . . Retrieved Matter . | . . . . . Parts Self-Destructed . | . . . . . Prevented . | . . . . . Kills | -11 -10 -10 -10 -9 ------- Run | Scr Mat Min Exi Min Combat Hostiles Destroyed 15 | . 6 3 . 6 Guns 6 | . 1 3 . 2 AOE 9 | . 5 . . 4 Classes Destroyed 7 | . 5 . . 2 Worker 2 | . 2 . . . Builder 1 | . 1 . . . Tunneler 2 | . . . . 2 Hauler 1 | . 1 . . . Watcher 3 | . 3 . . . Swarmer 11 | . 6 3 . 2 Assembled 4 | . . . . 4 Best Kill Streak 8 | . 8 3 . 4 Combat Bots Only 6 | . 6 3 . 4 Max Kills in Single Turn 3 | . 3 1 . 2 Gunslinging . | . . . . . Exploded 3 | . 3 . . 2 Melee . | . . . . . Uniques/NPCs Destroyed . | . . . . . Combat | -11 -10 -10 -10 -9 -------- Run | Scr Mat Min Exi Min Damage Taken 1223 | . 127 104 . 992 Core 263 | . 15 17 . 231 Absorbed by Shields . | . . . . . Core Remaining (%) 100 | 100 . . . . Volleys Fired 46 | . 27 8 . 11 Largest 2 | . 2 2 . 2 Hottest 60 | . 60 40 . 40 Shots Fired 83 | . 50 16 . 17 Gun 74 | . 46 16 . 12 Cannon . | . . . . . Launcher 9 | . 4 . . 5 Special . | . . . . . Kinetic 51 | . 23 16 . 12 Thermal . | . . . . . Explosive 9 | . 4 . . 5 Electromagnetic 23 | . 23 . . . Robot Hit Streak 8 | . 8 2 . 6 Robot Miss Streak 8 | . 8 3 . 2 Penetration Max . | . . . . . Secondary Targets 2 | . . 1 . 1 Max Gunslinging Chain 1 | . . 1 . 1 Shots Hit Robots 41 | . 24 6 . 11 Core Hits 33 | . 17 5 . 11 Critical Kills . | . . . . . Critical Parts Destroyed . | . . . . . Critical Strikes . | . . . . . Melee Attacks . | . . . . . Impact . | . . . . . Slashing . | . . . . . Piercing . | . . . . . Sneak Attacks . | . . . . . Combat Hostiles . | . . . . . Follow-up Attacks . | . . . . . Damage Inflicted 1555 | . 1005 73 . 477 Guns 541 | . 389 62 . 90 Cannons . | . . . . . Explosions 996 | . 616 . . 380 Melee . | . . . . . Ramming 18 | . . 11 . 7 Kinetic 300 | . 148 62 . 90 Thermal 62 | . 62 . . . Explosive 934 | . 554 . . 380 Electromagnetic 241 | . 241 . . . Impact . | . . . . . Slashing . | . . . . . Piercing . | . . . . . Highest Corruption . | . . . . . Average Corruption . | . . . . . Corruption Purged . | . . . . . Overload Shots . | . . . . . Overflow Damage 38 | . 20 . . 18 Projectiles . | . . . . . Explosions 38 | . 20 . . 18 Melee . | . . . . . Knockbacks . | . . . . . Impact . | . . . . . Kinetic . | . . . . . Secondary . | . . . . . Self-Inflicted Damage 96 | . 41 . . 55 Shots 3 | . 1 . . 2 Rammed 7 | . . 5 . 2 Targets Rammed 9 | . . 5 . 4 Kicked . | . . . . . Crushed 2 | . . . . 2 Highest Temperature 36 | . 36 12 . 12 Average Temperature 9 | . 11 6 . 5 Received Heat Transfer . | . . . . . Siege Activations . | . . . . . Robots Corrupted . | . . . . . Combat Hostiles . | . . . . . Parts Fried 2 | . 2 . . . Impact Corruptions . | . . . . . Robots Melted . | . . . . . Combat Hostiles . | . . . . . Parts Melted . | . . . . . Heat Transferred 100 | . 100 . . . Parts Sabotaged . | . . . . . Parts Stolen . | . . . . . Parts Stripped . | . . . . . Power Chain Reactions 2 | . 2 . . . Missiles Intercepted . | . . . . . Alert | -11 -10 -10 -10 -9 ------- Run | Scr Mat Min Exi Min Peak Influence 246 | . 246 145 . 109 Initial 95 | . . 95 . . Average 36 | . 21 48 . 41 Maximum Alert Level 1 | . 1 . . . Low Security (%) 99 | 100 98 100 . 100 Level 1 . | . 1 . . . Level 2 . | . . . . . Level 3 . | . . . . . Level 4 . | . . . . . Level 5 . | . . . . . High Security . | . . . . . Max Security . | . . . . . Squads Dispatched 1 | . 1 . . . Investigation 1 | . 1 . . . Extermination . | . . . . . Reinforcement . | . . . . . Assault . | . . . . . Garrison . | . . . . . Intercept . | . . . . . Construction Impeded . | . . . . . Haulers Reinforced . | . . . . . Active Scanning Responses . | . . . . . Cargo Convoy Interrupts . | . . . . . Stealth | -11 -10 -10 -10 -9 --------- Run | Scr Mat Min Exi Min Distress Signals . | . . . . . Communications Jammed . | . . . . . Distress Signals . | . . . . . Times Spotted 32 | . 14 5 . 13 Peak Tracking Total 4 | . 4 3 . 3 Tactical Retreats 1 | . . . . 1 Traps | -11 -10 -10 -10 -9 ------- Run | Scr Mat Min Exi Min Traps Triggered . | . . . . . Indirectly . | . . . . . Trap Hack Attempts . | . . . . . Triggered . | . . . . . Disarmed . | . . . . . Reprogrammed . | . . . . . Reused . | . . . . . Traps Extracted . | . . . . . Installed . | . . . . . Triggered . | . . . . . Machines | -11 -10 -10 -10 -9 ---------- Run | Scr Mat Min Exi Min Machines Disabled 2 | . 2 . . . Max in Single Turn 1 | . 1 . . . Machines Sabotaged . | . . . . . Garrisons Compromised . | . . . . . Overloaded Fab Kills . | . . . . . Hacking | -11 -10 -10 -10 -9 --------- Run | Scr Mat Min Exi Min Machines Accessed 9 | . 5 . 4 . Terminals 5 | . 5 . . . Fabricators . | . . . . . Repair Stations . | . . . . . Recycling Units . | . . . . . Scanalyzers . | . . . . . Garrison Access . | . . . . . Total Hacks 21 | . 17 . 4 . Successful 16 | . 12 . 4 . Failed 5 | . 5 . . . Catastrophic 1 | . 1 . . . Database Lockouts . | . . . . . Manual 14 | . 14 . . . Terminals 17 | . 17 . . . Fabricators . | . . . . . Repair Stations . | . . . . . Recycling Units . | . . . . . Scanalyzers . | . . . . . Garrison Access . | . . . . . Terminal Hacks 9 | . 5 . 4 . Record 4 | . . . 4 . Robot Analysis 3 | . 3 . . . Locate Traps 1 | . 1 . . . Recall Investigation 1 | . 1 . . . Fabricator Hacks . | . . . . . Repair Station Hacks . | . . . . . Recycling Unit Hacks . | . . . . . Scanalyzer . | . . . . . Garrison Access Hacks . | . . . . . Unauthorized Hacks 7 | . 7 . . . Terminals 7 | . 7 . . . Track 2 | . 2 . . . Assimilate 1 | . 1 . . . Botnet 3 | . 3 . . . Operators 1 | . 1 . . . Fabricators . | . . . . . Repair Stations . | . . . . . Recycling Units . | . . . . . Scanalyzers . | . . . . . Garrison Access . | . . . . . Data Cores Recovered . | . . . . . Used . | . . . . . Hacking Detections 5 | . 5 . . . Full Trace Events 1 | . 1 . . . Feedback Events . | . . . . . Feedback Blocked . | . . . . . Robot Schematics Acquired . | . . . . . Robots Built . | . . . . . Authchips . | . . . . . Time . | . . . . . Total Robot Build Rating . | . . . . . Part Schematics Acquired . | . . . . . Parts Built . | . . . . . Authchips . | . . . . . Time . | . . . . . Total Part Build Rating . | . . . . . Parts Repaired . | . . . . . Time . | . . . . . Parts Recycled . | . . . . . Recycled Matter . | . . . . . Retrieved Matter . | . . . . . Retrieved Components . | . . . . . Parts Scanalyzed . | . . . . . Part Schematics Acquired . | . . . . . Parts Damaged . | . . . . . Bothacking | -11 -10 -10 -10 -9 ------------ Run | Scr Mat Min Exi Min Used RIF Installer . | . . . . . Robots Hacked . | . . . . . Non-combat . | . . . . . Combat . | . . . . . Robot Hacks Applied . | . . . . . Relay Couplers Released . | . . . . . Robots Rewired . | . . . . . Allies Hacked . | . . . . . Hacks Repelled . | . . . . . Allies | -11 -10 -10 -10 -9 -------- Run | Scr Mat Min Exi Min Total Allies 6 | . . 3 . 3 Largest Group 3 | . . 2 2 3 Highest-Rated Group 62 | . . 62 62 40 Highest-Rated Ally 31 | . . 31 31 16 Total Orders . | . . . . . Ally Attacks 14 | . . 5 . 9 Total Damage 209 | . . 85 . 124 Kills 4 | . . 2 . 2 Allies Corrupted . | . . . . . Allies Melted . | . . . . . Intel | -11 -10 -10 -10 -9 ------- Run | Scr Mat Min Exi Min Robot Analysis Total 3 | . 3 . . . Derelict Logs Recovered 4 | . . 3 . 1 Drone Launches . | . . . . . Drone Recoveries . | . . . . . Exploration | -11 -10 -10 -10 -9 ------------- Run | Scr Mat Min Exi Min Turns Passed 3854 | 8 1182 1300 716 648 Spaces Moved 1644 | 2 295 531 448 368 Core 4 | . . . . 4 Treads 1637 | 2 295 531 448 361 Legs 3 | . . . . 3 Wheels . | . . . . . Hover . | . . . . . Flight . | . . . . . Fastest Speed 160 | 160 160 160 160 160 Average Speed 160 | 160 160 160 160 162 Slowest Speed 350 | 160 160 160 160 350 Overloaded Moves . | . . . . . Propulsion Burnouts . | . . . . . Robots Hopped . | . . . . . Cave-ins Triggered . | . . . . . Exploration Rate (%) 62 | 2 63 99 90 57 Regions Visited 4 Branch Regions 3 Pre-discovered Areas 3 | . . 2 . 1 Known Exits Taken . | . . . . . Unknown Exits Taken 4 | 1 1 1 1 . Scrap Searched 2 | . . 2 . . Spaces Dug . | . . . . . Terrain Destroyed 93 | . 40 . . 53 Melee . | . . . . . Projectile . | . . . . . AOE 93 | . 40 . . 53 Terrain Rammed . | . . . . . Walls Destroyed . | . . . . . Machines Disabled . | . . . . . Actions | -11 -10 -10 -10 -9 --------- Run | Scr Mat Min Exi Min Total 2770 | 6 954 964 447 399 Wait 1049 | . 619 419 . 11 Move 1640 | 1 294 530 447 368 Hop . | . . . . . Pick Up 8 | . 6 2 . . Fast Attach 3 | . 3 . . . Attach 3 | . . . . 3 Detach 2 | . 2 . . . Swap 7 | 3 2 . . 2 Drop 3 | 2 1 . . . Fire 46 | . 27 8 . 11 Melee . | . . . . . Ram . | . . . . . Kick . | . . . . . Crush 9 | . . 5 . 4 Escape Stasis . | . . . . . Rewire . | . . . . . Trap . | . . . . . Miscellaneous . | . . . . . Route ------- -11/Scrapyard -10/Materials (discovered 3 exits: [*Mat x2] / [*Min]) -10/Mines (discovered 3 exits: [*Mat x2] / *Exi) -10/Exiles -9/Mines History --------- Turn | Location | Event 7 | -11/Scrapyard | Discovered new exit (range 1) 9 | -11/Scrapyard | Entered Materials 312 | -10/Materials | Build established: Mutant 445 | -10/Materials | Discovered new exit (range 7) 1067 | -10/Materials | Discovered new exit (range 10) 1146 | -10/Materials | Discovered new exit (range 12) 1191 | -10/Materials | Entered Mines 1265 | -10/Mines | Met a Derelict bent on vengeance 1727 | -10/Mines | Learned location of Storage (-9) 1736 | -10/Mines | Learned Materials stockpile data 1839 | -10/Mines | Discovered new exit (range 10) 1903 | -10/Mines | Learned location of Zion (-7) 2095 | -10/Mines | Deemed a non-threat by the Exiles lab entrance 2095 | -10/Mines | Discovered new exit (range 5) 2312 | -10/Mines | Discovered new exit (range 11) 2338 | -10/Mines | Received a Mining Laser from a helpful Derelict 2491 | -10/Mines | Entered Exiles 2491 | -10/Exiles | Found Exiles lab abandoned 2491 | -10/Exiles | Accompanied by 2 allies 2521 | -10/Exiles | Led the pair of lost Derelicts to a safe place 3187 | -10/Exiles | Discovered new exit (range 14) 3207 | -10/Exiles | Entered Mines 3212 | -9/Mines | Assisted by bots powering up and referring to "LRC-V3" 3335 | -9/Mines | Learned 8 Materials zone layouts 3786 | -9/Mines | Assembled infested the area 3791 | -9/Mines | Assisted by a Guerilla fighting off Assembled 3815 | -9/Mines | Core integrity fell below 50% 3819 | -9/Mines | Core integrity fell below 20% 3855 | -9/Mines | Destroyed by as-97421 with Assembled Heavy Rifle Last Messages --------------- 03824_ U-05 Engineer lays Concrete. 03825_ The unstable cave ceiling collapses. 03825_ U-05 Engineer lays Concrete. 03825_ K-01 Serf collects debris. 03826_ U-05 Engineer lays Concrete. 03826_ U-05 Engineer builds a Wall. 03827_ U-05 Engineer lays Concrete. 03828_ The unstable cave ceiling collapses. 03828_ U-05 Engineer lays Concrete. 03831_ The unstable cave ceiling collapses. 03832_ as-47225 destroyed. 03832_ as-28380 destroyed. 03836_ as-17877 destroyed. 03836_ Lgt. Treads destroyed. 03836_ Destroyed Lgt. Treads. 03840_ The unstable cave ceiling collapses. 03840_ Destroyed Asb. Rifle. 03840_ as-67162 destroyed. 03843_ The unstable cave ceiling collapses. 03849_ R-06 Scavenger destroyed. Map ----- +----------------------------------------------------+ | ??????????????????????????????????????## | | ???????????????????????????????????????### | | ?????????????????????????????????????????# | | ?????????????????????????????????????????? | | ?????????????????????????????????????????? | | ?????????????????????????????????????????? | | ?????????????????????????????????????????? | | ?????????????????????????????????????????? | | ?????????????????????????????????????????? | | ?????????????????????????????????????????? | | ??????????????????????????? ?????????????? | | ??????????????????????????? ?????????????? | | ?????????????????????????? ?????? #????? | | ?????????????????????????? ?????# #????? | | ??????????????????????????? ????## #????? | | ??????????????????????????# ???## #????? | | ??????????????????????????# ??## ##???? | | ????????????????????????### ### ##### | | ????????????????????????? # | | ?????????????????????????? $# | | ???????????????????????##### ?? | | ??????????????????????## # # *!= #??? | | ?????????????????????### # %= #???? | | ????????????########## # # # #???? | | ????????????# ##??? | | ????????????# @ a ##?? | | ????????????# ###### a ### | | ????????????#???????# # | | ???????????????????? *%= ## #### | | ???????????????????? # #??? | | ????????????????????= ### ##??? | | ????????????????????% # ##?### #???? | | ???????????????????#* #????# #???? | | ??????????????????? ###????# #???? | | ??????????????????? # ##??????# #???? | | ???????????????????##?#####???????# #???? | | ??????????????????????????????????# #?### | | ??????????????????????????????????# ### | | ??????????????????????????????????# | | ??????????????????????????????????##### | | ???????????????????????????????# ###??# | | ????????????????????????????????# #### | | ????????????????????????????????# # | | ????????????????????????????????## ## | | ?????????????????????????????????########? | | ?????????????????????????????????????????? | | ?????????????????????????????????????????? | | ?????????????????????????????????????????? | | ?????????????????????????????????????????? | | | +----------------------------------------------------+ Best States ------------- Heat Dissipation 25 Energy Generation 10 Energy Capacity 125 Matter Stores 300 Matter Capacity 300 Sight Range 16 Terrain Scan Density 10 Armor Coverage 150 Evasion (%) 40 Recoil Reduction 2 Item Schematics ----------------- None Robot Schematics ------------------ None Fabricated ------------ Nothing Alien Tech Used ----------------- None Achievements -------------- None Challenges ------------ None Game ------ Seed CryofiberImprinterRifle Manual? 0 Play Time 00:14:21 Cumulative 274.4 hours Start 2021.11.27 @ 21:45:13 End 2021.11.27 @ 21:57:02 Sessions 1 Manual Loads 0 Difficulty Rogue Special Mode None Game No. 198 Rogue 198 Adventurer 0 Explorer 0 Win Type - Total 6 Types 6/0/0/0/0/0/0/0/0 Lore% 57 Gallery% 65 Achievement% 51 Wizard Run 0 Options --------- ASCII 1 Keyboard 1 Movement Arrows Keybinds 0 Fullscreen 1 Font 24/Smallcaps Map View 76x50 Tactical HUD 1 Map Filters NONE Filters NONE Steam 1 RUN: 479ecd3d-d0a9-415a-9610-74acf3af0cf4